Workbook

Sheet Лист1
A1: Школа | C1: МОБУ СОШ им.Т.Б.Гилязетдинова д.Большебадраково | F1: Утвердил: | G1: должность | H1: директор
A2: Типовое примерное меню приготавливаемых блюд | G2: фамилия | H2: Нугманов И.С.
A3: Возрастная категория | E3: Начальные классы | G3: дата | H3: 2025-09-01
A5: Неделя | B5: День недели | C5: Прием пищи | D5: Раздел меню | E5: Блюда | F5: Вес блюда, г | G5: Белки | H5: Жиры | I5: Углеводы | J5: Калорийность | K5: № рецептуры | L5: Цена
A6: 1 | B6: 1 | C6: Завтрак | E6: Сыр (порциями) | F6: 10 | G6: 3 | H6: 3 | J6: 36 | K6: 46 | L6: 6.75
D7: гор блюдо | E7: Котлеты из птицы на томатном соусе | F7: 90 | G7: 10 | H7: 11 | I7: 8 | J7: 171 | K7: 42 | L7: 39.38
D8: гор блюдо | E8: Макаронные изделия отварные | F8: 185 | G8: 6, 6 | H8: 4, 7 | I8: 39, 4 | J8: 230 | K8: 29 | L8: 8.73
D9: гор напиток | E9: Чай с лимоном с сахаром | F9: 200 | G9: 0.1 | H9: 0 | I9: 9.3 | J9: 27 | K9: 27 | L9: 1.98
D10: хлеб | E10: Хлеб пшеничный в/с | F10: 50 | G10: 4 | H10: 0 | I10: 25 | J10: 118 | K10: 44 | L10: 3
E11: Хлеб ржаной | F11: 25 | G11: 2 | H11: 0 | I11: 10 | J11: 50 | K11: 45 | L11: 1.5
D13: итого | F13: =SUM(F6:F12) -> 560 | G13: 21.7 | H13: 18.7 | I13: 60.7 | J13: 642 | L13: =SUM(L6:L12) -> 61.34
A14: =A6 -> 1 | B14: =B6 -> 1 | C14: Обед | D14: закуска
D15: 1 блюдо
D16: 2 блюдо
D17: гарнир
D18: напиток
D19: хлеб бел.
D20: хлеб черн.
D23: итого
A24: =A6 -> 1 | B24: =B6 -> 1 | C24: Итого за день:
A25: 1 | B25: 2 | C25: Завтрак | D25: гор.блюдо | E25: каша гречневая рассыпчатая | F25: 185.00 | G25: 10.4 | H25: 6.8 | I25: 45,4 | J25: 288.00 | K25: 47 | L25: 9.04
E26: гуляш из отварной говядины | F26: 110.00 | G26: 16,9 | H26: 17,5 | I26: 3,7 | J26: 240.00 | K26: 10 | L26: 65.99
D27: гор.напиток | E27: чай с сахаром | F27: 200.00 | G27: 0 | H27: 0 | I27: 15 | J27: 60.00 | K27: 27 | L27: 1.98
D28: хлеб | E28: хлеб пшеничный | F28: 50.00 | G28: 4 | H28: 0 | I28: 25 | J28: 118.00 | K28: 44 | L28: 3.00
D29: фрукты | E29: хлеб ржаной | F29: 25 | G29: 2 | H29: 0 | I29: 10 | J29: 50 | K29: 45 | L29: 1.50
D30: булочное
D32: итого | F32: =SUM(F25:F31) -> 570.00 | G32: 35 | H32: 18 | I32: 67 | J32: =SUM(J25:J31) -> 756.00 | L32: =SUM(L25:L31) -> 81.51
A33: =A25 -> 1 | B33: =B25 -> 2 | C33: Обед | D33: закуска
D34: 1 блюдо
D35: 2 блюдо
D36: гарнир
D37: напиток
D38: хлеб бел.
D39: хлеб черн.
D42: итого
A43: =A25 -> 1 | B43: =B25 -> 2 | C43: Итого за день:
A44: 1 | B44: 3 | C44: Завтрак | D44: гор.блюдо | E44: биточки рыбные в томатном соусе | F44: 90.00 | G44: 9.00 | H44: 4.00 | I44: 9.00 | J44: 108.00 | K44: 43 | L44: 5.82
E45: пюре картофельное | F45: 180.00 | G45: 3.70 | H45: 5.90 | I45: 24.00 | J45: 166.00 | K45: 2 | L45: 32.35
D46: гор.напиток | E46: какао с молоком | F46: 200.00 | G46: 3.60 | H46: 3.30 | I46: 13.70 | J46: 98.00 | K46: 24 | L46: 21.80
D47: хлеб | E47: хлеб пшеничый | F47: 50.00 | G47: 4.00 | H47: 0.00 | I47: 25.00 | J47: 118.00 | K47: 44 | L47: 1.50
D48: фрукты | E48: хлеб ржаной | F48: 25 | G48: 2 | H48: 0 | I48: 10 | J48: 50 | K48: 45 | L48: 3.00
E49: салат из моркови | F49: 80 | G49: 0.8 | H49: 3.6 | I49: 11.6 | J49: 80 | K49: 4 | L49: 10.27
D51: итого | F51: 655.00 | G51: 19.00 | H51: 14.00 | I51: 74.00 | J51: 645.00 | L51: =SUM(L44:L50) -> 74.74
A52: =A44 -> 1 | B52: =B44 -> 3 | C52: Обед | D52: закуска
D53: 1 блюдо
D54: 2 блюдо
D55: гарнир
D56: напиток
D57: хлеб бел.
D58: хлеб черн.
D61: итого
A62: =A44 -> 1 | B62: =B44 -> 3 | C62: Итого за день:
A63: 1 | B63: 4 | C63: Завтрак | D63: гор.блюдо | E63: Маринад овощной без томата | F63: 80 | G63: 0.90 | H63: 7.10 | I63: 7.90 | J63: 99.00 | K63: 33 | L63: 7.03
E64: Плов из отварной говядины | F64: 250 | G64: 17.70 | H64: 16.50 | I64: 47.00 | J64: 415.00 | K64: 53 | L64: 64.47
D65: гор.напиток | E65: напиток витаминизированный | F65: 200 | G65: 0.00 | H65: 0.00 | I65: 12.00 | J65: 128.00 | K65: 50 | L65: 1.98
D66: хлеб | E66: хлеб пшеничный | F66: 50 | G66: 4.00 | H66: 0.00 | I66: 25.00 | J66: 118.00 | K66: 44 | L66: 3.00
E67: Хлеб ржаной | F67: 25 | G67: 2.00 | H67: 0.00 | I67: 10.00 | J67: 50.00 | K67: 45 | L67: 1.50
D70: итого | F70: =SUM(F63:F69) -> 605 | G70: 18.00 | H70: 24.00 | I70: 71.00 | J70: 578.00 | L70: =SUM(L63:L69) -> 77.98
A71: =A63 -> 1 | B71: =B63 -> 4 | C71: Обед | D71: закуска
D72: 1 блюдо
D73: 2 блюдо
D74: гарнир
D75: напиток
D76: хлеб бел.
D77: хлеб черн.
D80: итого
A81: =A63 -> 1 | B81: =B63 -> 4 | C81: Итого за день:
A82: 1 | B82: 5 | C82: Завтрак | E82: сыр (порциями) | F82: 10.00 | G82: 3.00 | H82: 3.00 | I82: 0.00 | J82: 36.00 | K82: 46 | L82: 6.75
D83: гор.блюдо | E83: каша молочная "дружба" | F83: 185.00 | G83: 5.60 | H83: 7.60 | I83: 29.50 | J83: 209.00 | K83: 39 | L83: 17.88
E84: плюшка новомосковская | F84: 80.00 | G84: 5.00 | H84: 10.00 | I84: 38.00 | J84: 256.00 | K84: 56 | L84: 23
D85: напиток | E85: чай с лимоном и сахаром | F85: 200.00 | G85: 0.00 | H85: 0.00 | I85: 15.00 | J85: 62.00 | K85: 25.00 | L85: 1.98
D86: хлеб бел. | E86: хлеб пшеничный | F86: 50 | G86: 4 | H86: 0 | I86: 25 | J86: 118 | K86: 44 | L86: 3
D87: хлеб черн. | E87: хлеб ржаной | F87: 25 | G87: 2 | H87: 0 | I87: 10 | J87: 50 | K87: 45 | L87: 1.5
D89: итого | F89: =SUM(F82:F88) -> 550.00 | G89: 15.00 | H89: 20.00 | I89: 92.00 | J89: 707.00 | L89: =SUM(L82:L88) -> 54.11
A90: =A82 -> 1 | B90: =B82 -> 5 | C90: Обед | D90: закуска
D91: 1 блюдо
D92: 2 блюдо
D93: гарнир
D94: напиток
D95: хлеб бел.
D96: хлеб черн.
D97: булочное
D99: итого
A100: =A82 -> 1 | B100: =B82 -> 5 | C100: Итого за день:
A101: 2 | B101: 1 | C101: Завтрак | E101: салат из моркови | F101: 80.00 | G101: 0.80 | H101: 3.60 | I101: 11.60 | J101: 80.00 | K101: 4 | L101: 5.83
D102: гор.блюдо | E102: биточки нежные в томатном соусе | F102: 90.00 | G102: 11.00 | H102: 8.00 | I102: 10.00 | J102: 160.00 | K102: 41 | L102: 43.17
E103: макаронные изделия отварные | F103: 185.00 | G103: 6.60 | H103: 4.70 | I103: 39.40 | J103: 230.00 | K103: 29 | L103: 8.73
D104: напиток | E104: чай с молоком и сахаром | F104: 200.00 | G104: 1.40 | H104: 1.40 | I104: 11.20 | J104: 61.00 | K104: 26 | L104: 6.37
D105: хлеб бел. | E105: хлеб пшеничный | F105: 50.00 | G105: 4.00 | H105: 0.00 | I105: 25.00 | J105: 118.00 | K105: 44 | L105: 3
D106: хлеб черн. | E106: хлеб ржаной | F106: 25 | G106: 2 | H106: 0 | I106: 10 | J106: 50 | K106: 45 | L106: 1.5
D108: итого | F108: =SUM(F101:F107) -> 630.00 | G108: 23.00 | H108: 18.00 | I108: 72.00 | J108: =SUM(J101:J107) -> 699.00 | L108: =SUM(L101:L107) -> 68.6
A109: =A101 -> 2 | B109: =B101 -> 1 | C109: Обед | D109: закуска
D110: 1 блюдо
D111: 2 блюдо
D112: гарнир
D113: напиток
D114: хлеб бел.
D115: хлеб черн.
D118: итого
A119: =A101 -> 2 | B119: =B101 -> 1 | C119: Итого за день:
A120: 2 | B120: 2 | C120: Завтрак | E120: печенье сахарное | F120: 50.00 | G120: 8.00 | H120: 8.00 | I120: 44.00 | J120: 286.00 | K120: 54 | L120: 13.4
D121: гор.блюдо | E121: каша "Артек" молочная вязкая | F121: 185.00 | G121: 7.20 | H121: 7.20 | I121: 36.80 | J121: 242.00 | K121: 36 | L121: 15.06
D122: гор.напиток | E122: чай с сахором | F122: 200.00 | G122: 1.00 | H122: 2.00 | I122: 12.00 | J122: 70.00 | K122: 27 | L122: 1.98
D123: хлеб | E123: хлеб пшеничный | F123: 50.00 | G123: 4.00 | H123: 0.00 | I123: 25.00 | J123: 118.00 | K123: 44 | L123: 3
E124: хлеб ржаной | F124: 25 | G124: 2 | H124: 0 | I124: 10 | J124: 50 | K124: 45 | L124: 1.5
D127: итого | F127: =SUM(F120:F126) -> 510.00 | G127: 15.00 | H127: 15.00 | I127: 103.00 | J127: 733.00 | L127: =SUM(L120:L126) -> 34.94
A128: =A120 -> 2 | B128: =B120 -> 2 | C128: Обед | D128: закуска
D129: 1 блюдо
D130: 2 блюдо
D131: гарнир
D132: напиток
D133: хлеб бел.
D134: хлеб черн.
D137: итого
A138: =A120 -> 2 | B138: =B120 -> 2 | C138: Итого за день:
A139: 2 | B139: 3 | C139: Завтрак | E139: Салат из белокочаной капусты | F139: 80 | G139: 1.7 | H139: 3.6 | I139: 8.2 | J139: 71.6 | K139: 7 | L139: 8.58
D140: гор.блюдо | E140: котлеты из птицы в томатном соусе | F140: 90 | G140: 10 | H140: 11 | I140: 8 | J140: 171 | K140: 42 | L140: 39.38
E141: пюре картофельный | F141: 180 | G141: 3.7 | H141: 5.9 | I141: 24 | J141: 166 | K141: 2 | L141: 9.04
D142: напиток | E142: какао с молоком | F142: 200 | G142: 3.6 | H142: 3.3 | I142: 13.7 | J142: 98 | K142: 24 | L142: 10.27
D143: хлеб бел. | E143: хлеб пшеничный | F143: 50 | G143: 4 | H143: 0 | I143: 25 | J143: 118 | K143: 44 | L143: 3
D144: хлеб черн. | E144: хлеб ржаной | F144: 25 | G144: 2 | H144: 0 | I144: 10 | J144: 50 | K144: 45 | L144: 1.5
D146: итого | F146: =SUM(F139:F145) -> 625 | G146: 19 | H146: 21 | I146: 67 | J146: 699.6 | L146: =SUM(L139:L145) -> 71.77
A147: =A139 -> 2 | B147: =B139 -> 3 | C147: Обед | D147: закуска
D148: 1 блюдо
D149: 2 блюдо
D150: гарнир
D151: напиток
D152: хлеб бел.
D153: хлеб черн.
D156: итого
A157: =A139 -> 2 | B157: =B139 -> 3 | C157: Итого за день:
A158: 2 | B158: 4 | C158: Завтрак | D158: гор.блюдо | E158: макаронные изделия отварные | F158: 185 | G158: 6.6 | H158: 4.7 | I158: 39.4 | J158: 230 | K158: 29 | L158: 8.73
E159: биточки рыбные в томатном соусе | F159: 90 | G159: 10 | H159: 9 | I159: 2 | J159: 132 | K159: 43 | L159: 32.37
D160: гор.напиток | E160: чай с лимоном и сахаром | F160: 200 | G160: 0.1 | H160: 0 | I160: 9.3 | J160: 37 | K160: 27 | L160: 3.57
D161: хлеб | E161: хлеб пшеничный | F161: 50 | G161: 4 | H161: 0 | I161: 25 | J161: 118 | K161: 44 | L161: 3.00
E162: хлеб ржаной | F162: 25 | G162: 2 | H162: 0 | I162: 10 | J162: 50 | K162: 45 | L162: 1.5
D165: итого | F165: =SUM(F158:F164) -> 550 | G165: 20 | H165: 24 | I165: 42 | J165: 698 | L165: =SUM(L158:L164) -> 49.17
A166: =A158 -> 2 | B166: =B158 -> 4 | C166: Обед | D166: закуска
D167: 1 блюдо
D168: 2 блюдо
D169: гарнир
D170: напиток
D171: хлеб бел.
D172: хлеб черн.
D175: итого
A176: =A158 -> 2 | B176: =B158 -> 4 | C176: Итого за день:
A177: 2 | B177: 5 | C177: Завтрак | D177: гор.блюдо | E177: каша рисовая молочная жидкая | F177: 185.00 | G177: 4.50 | H177: 7.20 | I177: 27.60 | J177: 194.00 | K177: 18 | L177: 17.88
D178: булочное | E178: бублик ванильный | F178: 80.00 | G178: 5.00 | H178: 8.00 | I178: 36.00 | J178: 237.00 | K178: 57 | L178: 23
D179: гор.напиток | E179: витаминиированный напиток "витошка" | F179: 200.00 | G179: 0.00 | H179: 0.00 | I179: 12.00 | J179: 128.00 | K179: 50 | L179: 1.98
D180: хлеб | E180: хлеб пшеничный | F180: 50.00 | G180: 4.00 | H180: 0.00 | I180: 25.00 | J180: 118.00 | K180: 44 | L180: 3
E181: хлеб ржаной | F181: 25 | G181: 2 | H181: 0 | I181: 10 | J181: 50 | K181: 45 | L181: 1.5
D184: итого | F184: =SUM(F177:F183) -> 540.00 | G184: 17.00 | H184: 18.00 | I184: 103.00 | J184: 663.00 | L184: =SUM(L177:L183) -> 47.36
A185: =A177 -> 2 | B185: =B177 -> 5 | C185: Обед | D185: закуска
D186: 1 блюдо
D187: 2 блюдо
D188: гарнир
D189: напиток
D190: хлеб бел.
D191: хлеб черн.
D194: итого
A195: =A177 -> 2 | B195: =B177 -> 5 | C195: Итого за день: | F195: =F13+F32+F51+F70+F89+F108+F127+F146+F165+F184 -> 5795 | G195: =G13+G32+G51+G70+G89+G108+G127+G146+G165+G184 -> 202.7 | H195: =H13+H32+H51+H70+H89+H108+H127+H146+H165+H184 -> 190.7 | I195: =I13+I32+I51+I70+I89+I108+I127+I146+I165+I184 -> 751.7 | J195: =J13+J32+J51+J70+J89+J108+J127+J146+J165+J184 -> 6820.6 | L195: =SUM(L13+L32+L51+L70+L89+L108+L127+L146+L165+L184) -> 621.52
